bitfinex/quotes_ETHUSD_20220118
["timestamp","ask_amount","ask_price","bid_price","bid_amount"]
[1642502149605,0.78459,3187.5,3186.9,0.53616742]
[1642502150050,0.78459,3187.5,3187.0,0.00852635]
[1642502150653,0.23988003,3186.8,3186.4,1.27779387]
[1642502150852,0.23988003,3186.8,3186.4,0.13819997]
[1642502150853,0.0034106,3186.7,3186.4,0.13819997]
[1642502151053,0.0034106,3186.7,3186.5,0.00284212]
[1642502151454,0.23988003,3186.8,3186.3,0.00397897]
[1642502151856,1.02457003,3186.8,3186.3,0.00397897]
[1642502152055,2.79732061,3186.7,3186.3,0.00397897]
[1642502152255,1.5694407,3186.7,3186.3,0.00397897]
[1642502153256,0.78471,3186.6,3186.3,0.00397897]
[1642502153456,0.03356432,3186.5,3186.3,0.00397897]
[1642502153657,0.78471,3186.6,3186.3,0.00397897]
[1642502155013,0.78487,3186.3,3185.5,3.28954318]
[1642502155209,2.3547318,3186.1,3185.3,0.8938279]
[1642502155412,2.3547318,3186.1,3185.6,0.00397896]
[1642502155810,3.1396818,3186.1,3185.6,0.00397896]
[1642502156407,3.1396818,3186.1,3184.7,0.00909477]
[1642502156610,3.1396818,3186.1,3184.8,0.1255]
[1642502156808,0.8203737,3186.0,3184.8,0.1255]
[1642502157009,0.7849103,3185.7,3185.2,2.72932752]
[1642502157408,0.7849103,3185.7,3185.3,0.00568423]
[1642502158056,0.7849103,3185.7,3184.9,0.00795793]
[1642502158754,0.7849417,3185.5,3184.6,0.1255]
[1642502158958,0.7849417,3185.5,3184.7,3.04546064]
[1642502159157,0.00284212,3185.4,3184.7,3.04659748]
[1642502159358,1.57280362,3185.4,3184.7,3.04659748]
[1642502159558,0.0022737,3185.3,3184.7,3.04659748]
[1642502159758,1.30403315,3185.4,3184.7,3.04659748]
[1642502159958,1.69541,3186.0,3184.8,0.00284212]
[1642502160359,1.5698032,3185.8,3184.8,0.00284212]
[1642502160761,0.00227369,3185.7,3185.1,1.25452957]
[1642502161160,0.00170527,3185.6,3185.1,1.25452957]
[1642502161405,0.00170527,3185.6,3184.8,0.00284212]
[1642502161406,0.7849016,3185.5,3184.8,0.00284212]
[1642502161606,0.78603845,3185.5,3184.8,0.00284212]
[1642502161805,0.1255,3185.4,3184.8,0.00284212]
[1642502162002,0.1255,3185.4,3184.7,0.00341054]
[1642502162003,1.695658,3185.4,3184.7,0.00341054]
[1642502162604,1.570119,3185.3,3184.8,1.32281529]
[1642502162804,0.785079,3185.3,3184.8,1.32281529]
[1642502163004,0.1255,3185.4,3184.9,3.0351977]
[1642502163209,0.00113685,3185.5,3185.2,0.04739733]
[1642502163407,0.00113685,3185.5,3185.1,0.01202605]
[1642502163605,0.00113685,3185.5,3185.2,0.1255]
[1642502163805,0.00113685,3185.5,3185.3,1.54447542]
[1642502164008,0.00113685,3185.5,3185.4,5.49132146]
[1642502164210,0.00113685,3185.5,3185.4,1.39132146]
[1642502164410,0.00113685,3185.5,3185.4,3.74132146]
[1642502165250,0.00113685,3185.5,3185.4,6.37978345]
[1642502165451,0.00113685,3185.5,3185.4,6.3918074]
[1642502165652,0.00113685,3185.5,3185.4,3.74132146]
[1642502166253,0.00113685,3185.5,3185.4,1.39132146]
[1642502166453,3.10113685,3185.5,3185.4,1.39132146]
[1642502166653,0.06360321,3185.4,3185.2,0.1255]
[1642502167053,3.10113685,3185.5,3185.2,0.1255]
[1642502167255,3.10113685,3185.5,3185.0,0.00170527]
[1642502167256,0.0037287,3185.4,3185.0,0.00170527]
[1642502167456,0.1255,3185.3,3185.0,0.00170527]
[1642502167653,0.1255,3185.4,3185.0,0.00170527]
[1642502167853,0.1255,3185.4,3184.5,0.89859304]
[1642502168053,0.9104791,3185.4,3184.5,0.89859304]
[1642502168253,0.1255,3185.4,3184.6,0.00397897]
[1642502168912,1.48451929,3185.1,3184.6,0.00397897]
[1642502169113,0.1255,3185.0,3184.6,0.00397897]
[1642502169711,0.1255,3185.2,3184.6,0.00397897]
[1642502169911,0.91055,3185.2,3184.6,0.00397897]
[1642502170311,0.7850417,3185.0,3184.6,0.00397897]
[1642502170511,0.04058097,3184.8,3184.6,0.00397897]
[1642502170713,0.1255,3184.9,3184.6,0.00397897]
[1642502170911,1.43968695,3184.8,3184.7,0.53645597]
[1642502171312,1.43968695,3184.8,3184.7,0.53986651]
[1642502171711,2.22479405,3184.8,3184.7,0.53986651]
[1642502172554,0.7851071,3184.8,3184.7,0.53986651]
[1642502172755,0.1255,3185.1,3184.7,0.53986651]
[1642502173156,0.1255,3185.1,3184.8,0.00284212]
[1642502173559,1.46312668,3185.0,3184.8,0.00284212]
[1642502173760,3.1255,3184.9,3184.8,0.00284212]
[1642502173960,0.1255,3184.9,3184.8,0.00284212]
[1642502174162,0.7851052,3185.0,3184.0,1.00738951]
[1642502174362,0.7851052,3185.0,3184.1,2.70674698]
[1642502174562,0.7851052,3185.0,3184.1,2.71356806]
[1642502174764,0.7851052,3185.0,3184.2,0.00625266]
[1642502176700,3.8851052,3185.0,3184.3,0.53653769]
[1642502177102,3.8851052,3185.0,3184.4,0.00511581]
[1642502177103,0.00452374,3184.9,3184.4,0.00511581]
[1642502177503,3.8851052,3185.0,3184.4,0.00511581]
[1642502178304,4.0106052,3185.0,3184.2,0.00625266]
[1642502178504,3.8851052,3185.0,3184.2,0.00625266]
[1642502178908,0.78515,3184.9,3184.2,0.00625266]
[1642502179307,0.7851679,3184.8,3184.2,0.00625266]
[1642502179908,0.7851679,3184.8,3183.8,0.00852635]
[1642502180355,0.7851946,3184.5,3183.8,1.15743518]
[1642502180759,0.7851679,3184.8,3183.9,0.54451486]
[1642502180959,0.7851679,3184.8,3184.0,2.63478311]
[1642502181156,0.7851679,3184.8,3184.0,2.64217262]
[1642502181357,0.7850903,3184.9,3184.1,0.00682108]
[1642502182562,1.5703446,3184.8,3184.1,0.00682108]
[1642502182761,0.7851636,3184.7,3184.1,0.00682108]
[1642502182962,1.09689572,3184.6,3184.1,0.00682108]
[1642502183162,1.09689572,3184.6,3183.9,0.00795793]
[1642502183461,1.09689572,3184.6,3183.7,0.00909478]
[1642502183662,0.1255,3184.5,3184.0,0.53655201]
[1642502183913,0.9106979,3184.5,3184.0,0.53655201]
[1642502184118,0.7851979,3184.5,3184.1,0.00682108]
[1642502184314,0.1255,3184.7,3184.1,2.6467497]
[1642502184512,0.1255,3184.9,3184.1,0.00682108]
[1642502184714,0.1255,3184.9,3184.2,0.00625266]
[1642502184915,0.1255,3184.9,3184.1,0.00682108]
[1642502186415,0.1255,3184.9,3184.0,0.00738951]
[1642502187655,0.9106226,3184.9,3184.0,0.00738951]
[1642502187856,0.1255,3184.9,3184.0,0.00738951]
[1642502188255,0.1255,3184.9,3183.7,0.00909478]
[1642502188455,0.1255,3184.9,3183.6,0.0096632]
[1642502188657,0.7851655,3184.8,3183.7,0.00909478]
[1642502188858,1.15808135,3184.5,3183.6,3.72500041]
[1642502189059,1.15808135,3184.5,3183.7,0.00909478]
[1642502189459,1.15808135,3184.5,3183.7,0.54567328]
[1642502189858,1.15808135,3184.5,3183.8,0.00852635]
[1642502190659,1.94330815,3184.5,3183.8,0.00852635]
[1642502190858,1.94330815,3184.5,3183.9,0.5365785]
[1642502191318,1.94330815,3184.5,3184.0,0.00738951]
[1642502191506,1.15808135,3184.5,3184.0,0.00738951]
[1642502191705,1.15808135,3184.5,3184.1,0.02236237]
[1642502192105,1.15808135,3184.5,3184.3,0.00557232]
[1642502192508,1.15808135,3184.5,3184.4,0.00511581]
[1642502192909,1.44594432,3183.9,3183.7,0.00909478]
[1642502193109,1.44594432,3183.9,3183.5,0.01023162]
[1642502193310,1.44594432,3183.9,3183.4,0.01080005]
[1642502193913,1.44594432,3183.9,3183.5,0.53664817]
[1642502194312,1.44594432,3183.9,3183.6,0.0096632]
[1642502194713,0.0204147,3183.8,3183.6,0.0096632]
[1642502194912,1.44594432,3183.9,3183.6,0.0096632]
[1642502195355,1.44594432,3183.9,3183.7,0.53664817]
[1642502195756,1.44594432,3183.9,3183.8,0.00852635]
[1642502197261,1.44594432,3183.9,3183.4,0.01080005]
[1642502197459,0.01863082,3183.8,3183.4,0.01080005]
[1642502198160,0.7853927,3183.8,3183.5,0.53668206]
[1642502198559,0.7853927,3183.8,3183.6,0.0096632]
[1642502199411,3.1,3183.9,3183.6,0.0096632]
[1642502199610,3.1,3183.9,3183.7,0.07086228]
[1642502199814,3.1,3183.9,3183.6,0.0096632]
[1642502200013,3.1,3183.9,3183.8,0.00852635]
[1642502200212,3.1,3183.9,3183.1,0.31250532]
[1642502200513,4.64111682,3183.9,3183.2,0.01193689]
[1642502200811,4.64111682,3183.9,3183.2,1.12332361]
[1642502201014,4.64111682,3183.9,3183.3,0.53665824]
[1642502201213,4.64111682,3183.9,3183.3,0.54802671]
[1642502201413,4.64111682,3183.9,3183.4,0.01080005]
[1642502202415,4.64111682,3183.9,3183.5,0.53665824]
[1642502202858,4.64111682,3183.9,3183.6,0.0096632]
[1642502203058,0.1255,3183.8,3183.6,0.0096632]
[1642502203259,3.1,3183.9,3183.6,0.0096632]
[1642502204264,1.33057953,3183.7,3183.1,1.01250532]
[1642502204465,3.1,3183.9,3183.2,0.01193689]
[1642502205168,3.1,3183.9,3183.3,0.53667053]
[1642502205565,3.1,3183.9,3183.4,0.01080005]
[1642502206165,3.8853861,3183.9,3183.4,0.01080005]
[1642502206612,3.8853861,3183.9,3183.5,0.53667053]
[1642502207012,1.16782011,3183.8,3183.6,0.0096632]
[1642502208013,0.1255,3183.7,3183.6,0.0096632]
[1642502208214,0.1255,3183.7,3183.1,0.01250532]
[1642502208416,0.7854409,3183.6,3183.1,0.01250532]
[1642502208813,0.1255,3183.7,3183.1,0.01250532]
[1642502209020,0.1255,3183.8,3183.1,0.01250532]
[1642502209220,0.1255,3183.8,3183.2,0.53668439]
[1642502209418,0.1255,3183.8,3183.3,0.0133146]
[1642502209619,0.1255,3183.8,3183.3,0.02468307]
[1642502209818,1.24465123,3183.6,3183.4,0.01080005]
[1642502210463,1.24465123,3183.6,3183.5,0.53668439]
[1642502210860,1.24465123,3183.6,3183.5,0.54691601]
[1642502212461,1.37015123,3183.6,3183.5,0.54691601]
[1642502212663,1.24465123,3183.6,3183.5,0.54691601]
[1642502228064,3.8853125,3183.9,3183.5,0.54691601]
[1642502228065,3.1,3183.9,3183.5,0.54691601]
[1642502228263,3.1,3183.9,3183.6,0.0545149]
[1642502228463,3.1,3183.9,3183.6,0.7948132]
[1642502228665,3.1,3183.9,3183.7,0.79424478]
[1642502228914,3.1,3183.9,3183.7,1.33092917]
[1642502229117,3.1,3183.9,3183.8,0.00852635]
[1642502230215,3.1,3183.9,3183.8,0.54521074]
[1642502230614,3.1,3183.9,3183.8,3.09521074]
[1642502230815,3.1,3183.9,3183.8,5.09521074]
[1642502231615,3.1,3183.9,3183.8,2.54521074]
[1642502231817,3.1,3183.9,3183.8,2.84521074]
[1642502232959,3.1,3183.9,3183.8,2.54521074]
[1642502233167,3.1,3183.9,3183.8,3.84521074]
[1642502233362,0.1255,3185.2,3184.1,0.78494]
[1642502233561,3.6956,3185.4,3184.3,0.78487]
[1642502233765,0.1255,3185.3,3184.3,0.78487]
[1642502233963,0.1255,3185.3,3184.4,0.00511581]
[1642502234165,0.1255,3185.3,3184.5,1.41170839]
[1642502234366,3.6956,3185.4,3184.5,1.41170839]
[1642502234367,3.8211,3185.4,3184.6,1.87488233]
[1642502234668,0.1255,3185.8,3184.8,0.0147858]
[1642502234865,3.8834,3186.2,3184.8,0.0147858]
[1642502234866,0.1255,3186.0,3184.8,0.0147858]
[1642502235068,0.00284212,3185.8,3184.9,0.0022737]
[1642502235266,0.00284212,3185.8,3184.9,3.0351977]
[1642502235470,0.00227369,3185.7,3185.1,1.36199015]
[1642502235670,0.00227369,3185.7,3185.2,3.24486316]
[1642502235869,0.00170527,3185.6,3185.4,0.78464]
[1642502236069,18.7045,3186.7,3185.4,0.78464]
[1642502236070,0.1255,3186.6,3185.6,3.3]
[1642502236516,0.07777369,3186.6,3185.8,3.3]
[1642502236715,0.07777369,3186.6,3185.7,4.30126354]
[1642502236716,0.07777369,3186.6,3185.7,0.53340527]
[1642502236717,0.00284212,3186.5,3185.7,0.53340527]
[1642502236918,0.00284212,3186.5,3185.8,0.78453]
[1642502237116,0.0022737,3186.4,3185.8,2.52637389]
[1642502237317,0.0022737,3186.4,3185.9,0.78456]
[1642502237519,0.00170527,3186.3,3186.0,0.78448]
[1642502237818,0.00113685,3186.2,3186.0,0.78448]
[1642502238418,0.00113685,3186.2,3186.0,1.56897]
[1642502238821,0.00113685,3186.2,3186.0,0.78448]
[1642502239920,0.1255,3186.1,3185.8,0.00113684]
[1642502240365,0.1255,3186.1,3185.7,0.00170527]
[1642502241468,0.1255,3186.1,3185.7,1.57104527]
[1642502241666,0.00113685,3186.2,3185.8,3.4810914]
[1642502241965,0.00113685,3186.2,3185.8,0.78573684]
[1642502242164,0.00113685,3186.2,3185.8,0.00113684]
[1642502242567,0.1255,3186.1,3185.8,0.00113684]
[1642502243166,0.1255,3186.1,3185.6,0.00227369]
[1642502243835,0.1255,3186.1,3184.6,3.0299292]
[1642502243836,5.36295005,3185.9,3184.4,2.71330488]
[1642502244029,1.412232,3185.8,3184.3,0.78511]
[1642502244227,1.41336885,3185.8,3184.5,0.00625266]
[1642502244427,1.36263685,3185.8,3184.5,0.00625266]
[1642502244824,0.1419849,3185.1,3184.1,2.6457959]
[1642502245027,0.1255,3185.0,3184.3,1.57012]
[1642502245229,0.1255,3185.1,3184.5,0.7851]
[1642502245425,0.1255,3185.3,3184.5,0.7851]
[1642502245626,3.9428,3185.4,3184.6,0.00568424]
[1642502246126,1.10357313,3184.7,3184.6,0.00568424]
[1642502246432,1.10357313,3184.7,3184.6,1.57552424]
[1642502248669,4.0683,3185.4,3184.8,2.14114626]
[1642502249069,4.3683,3185.4,3184.9,2.68665403]
[1642502249270,4.3683,3185.4,3185.0,2.68267506]
[1642502249271,1.49153305,3185.3,3185.0,2.68267506]
[1642502249467,0.1255,3185.2,3185.0,2.6860856]
[1642502249668,0.1255,3185.2,3185.1,0.00284212]
[1642502250070,0.1255,3185.2,3184.9,2.68678453]
[1642502250267,0.1255,3185.2,3185.0,2.6862161]
[1642502250467,0.1255,3185.2,3185.1,2.68280556]
[1642502250667,0.1255,3185.2,3185.1,0.00284212]
[1642502251168,0.9105136,3185.2,3185.0,0.00341054]
[1642502251414,0.7850136,3185.2,3185.0,0.00341054]
[1642502251918,3.8850136,3185.2,3185.0,0.00341054]
[1642502254920,0.01398537,3185.1,3185.0,0.00341054]
[1642502261424,3.7,3185.0,3184.9,0.72366211]
[1642502261625,3.7,3185.0,3184.0,2.00504882]
[1642502261626,3.5,3184.9,3184.0,2.00504882]
[1642502261824,3.2664568,3184.8,3184.0,2.00504882]
[1642502262126,1.3486072,3184.7,3184.1,0.00511581]
[1642502262324,0.1255,3184.6,3184.1,0.00511581]
[1642502263666,0.910716,3184.6,3184.1,0.00511581]
[1642502264069,0.3,3184.5,3184.1,0.00511581]
[1642502264269,0.1255,3184.4,3184.1,0.00511581]
[1642502264469,0.3,3184.5,3184.1,0.00511581]
[1642502264673,0.785216,3184.6,3184.1,0.00511581]
[1642502264870,0.0070696,3184.5,3184.1,0.00511581]
[1642502265270,1.5776316,3184.5,3184.1,0.00511581]
[1642502266514,0.0070696,3184.5,3184.1,0.00511581]
[1642502267414,0.0070696,3184.5,3184.2,0.03170083]
[1642502267812,0.0070696,3184.5,3184.3,0.00397897]
[1642502269915,0.0070696,3184.5,3184.3,0.04396254]
[1642502270363,0.0070696,3184.5,3184.4,0.00341054]
[1642502271162,0.0070696,3184.5,3184.3,0.00397897]
[1642502271564,0.01606957,3184.5,3184.3,0.00397897]
[1642502271966,1.44279513,3184.4,3184.3,0.00397897]
[1642502272968,4.54279513,3184.4,3184.3,0.00397897]
[1642502274920,4.54991102,3184.4,3184.3,0.00397897]
[1642502276718,3.10711589,3184.4,3184.3,0.00397897]
[1642502277320,3.10711589,3184.4,3184.2,0.00454739]
[1642502278366,3.10711589,3184.4,3184.2,0.01130809]
[1642502278665,3.10711589,3184.4,3184.3,0.00397897]
[1642502279270,3.10711589,3184.4,3184.2,0.00454739]
[1642502279970,0.00697446,3184.3,3184.2,0.00454739]
[1642502281919,0.1255,3185.1,3184.4,1.17866464]
[1642502282118,0.910528,3185.2,3184.5,0.82926071]
[1642502282320,0.910528,3185.2,3184.5,6.14781349]
[1642502282321,0.1255,3185.2,3184.5,6.14781349]
[1642502282519,0.12663684,3185.2,3184.6,0.0022737]
[1642502282721,0.00113684,3185.2,3184.6,1.1277737]
[1642502283019,0.00113684,3185.2,3185.0,1.32597367]
[1642502283619,0.00113684,3185.2,3185.1,5.58297187]
[1642502283819,0.00113684,3185.2,3185.1,2.68297187]
[1642502284623,0.00113684,3185.2,3185.1,5.35326911]
[1642502285065,1.34476344,3185.2,3185.1,2.68795784]
[1642502285466,1.47026344,3185.2,3185.1,2.68795784]
[1642502286066,1.34476344,3185.2,3185.1,2.68795784]
[1642502286466,3.4,3185.1,3185.0,0.0023257]
[1642502286666,0.00588422,3185.0,3184.7,0.00170527]
[1642502286867,0.1255,3184.9,3184.7,0.00170527]
[1642502287067,0.4255,3185.0,3184.5,0.00284212]
[1642502287270,0.1255,3185.0,3184.5,0.00284212]
[1642502287469,0.1255,3185.0,3184.5,4.15621186]
[1642502287669,0.1255,3185.0,3184.7,1.53875401]
[1642502287873,0.1255,3185.1,3184.6,1.54102771]
[1642502288072,0.1255,3185.1,3184.8,0.00113685]
[1642502288271,0.1255,3185.1,3184.5,1.53875401]
[1642502288272,0.1255,3185.1,3184.7,0.00170527]
[1642502288470,0.1255,3185.1,3184.6,0.0022737]
[1642502288923,1.29533391,3185.0,3184.6,0.0022737]
[1642502289124,0.1255,3184.9,3184.6,0.0022737]
[1642502290526,1.29851357,3185.0,3184.6,0.0022737]
[1642502292228,1.29851357,3185.0,3184.5,1.54159613]
[1642502292568,1.29851357,3185.0,3184.6,0.0022737]
[1642502293371,1.29851357,3185.0,3184.5,1.54159613]
[1642502293572,1.29851357,3185.0,3184.6,0.0022737]
[1642502293874,4.39851357,3185.0,3184.6,0.0022737]
[1642502296418,5.18365357,3185.0,3184.6,0.0022737]
[1642502297220,4.39851357,3185.0,3184.6,0.0022737]
[1642502298624,4.99851357,3185.0,3184.6,0.0022737]
[1642502298821,0.1255,3184.9,3184.6,0.0022737]
[1642502299025,0.91072,3184.9,3184.5,0.00284212]
[1642502299424,0.3,3184.8,3184.5,0.00284212]
[1642502299626,0.1255,3184.7,3184.5,0.00284212]
[1642502300064,1.57044,3184.9,3184.5,0.00284212]
[1642502300065,0.4255,3184.8,3184.5,0.00284212]
[1642502301265,0.1255,3184.8,3184.5,0.00284212]
[1642502303068,0.4255,3184.8,3184.5,0.00284212]
[1642502303470,0.3755,3184.8,3184.5,0.00284212]
[1642502304319,0.1255,3184.8,3184.5,0.00284212]
[1642502304920,0.00610124,3184.7,3184.5,0.00284212]
[1642502306719,0.00610124,3184.7,3184.5,2.68607353]
[1642502307120,0.00610124,3184.7,3184.6,0.0022737]
[1642502309273,0.00610124,3184.7,3184.6,0.53895162]
[1642502309572,0.00610124,3184.7,3184.6,3.22218303]
[1642502310473,0.00610124,3184.7,3184.6,2.68550511]
[1642502311076,0.00610124,3184.7,3184.6,0.0022737]
[1642502311334,0.00610124,3184.7,3184.6,2.60959972]
[1642502311520,0.00610124,3184.7,3184.6,6.83158514]
[1642502311718,0.00610124,3184.7,3184.6,7.36820712]
[1642502311918,0.00610124,3184.7,3184.6,4.68497571]
[1642502312117,0.00610124,3184.7,3184.6,3.1462217]
[1642502321927,0.00610124,3184.7,3184.6,7.36256369]
[1642502322128,0.00610124,3184.7,3184.6,4.67961236]
[1642502322330,0.00610124,3184.7,3184.6,7.36256369]
[1642502322970,0.00610124,3184.7,3184.6,4.75523767]
[1642502323772,0.00610124,3184.7,3184.6,3.22184701]
[1642502323973,0.00610124,3184.7,3184.6,7.33843571]
[1642502324976,0.00610124,3184.7,3184.6,4.75523767]
[1642502327022,0.00610124,3184.7,3184.6,3.22184701]
[1642502327419,2.65610124,3184.7,3184.6,3.22184701]
[1642502328420,2.78160124,3184.7,3184.6,3.22184701]
[1642502329626,2.78160124,3184.7,3184.6,2.68522503]
[1642502329824,2.78160124,3184.7,3184.6,0.0022737]
[1642502334524,2.65610124,3184.7,3184.6,0.0022737]
[1642502336623,0.00610124,3184.7,3184.6,0.0022737]
[1642502337024,0.00610124,3184.7,3184.5,2.68295133]
[1642502343123,3.6227,3185.4,3184.5,2.68295133]
[1642502343124,2.35879642,3185.4,3184.5,2.68295133]
[1642502343327,2.34920217,3185.4,3184.5,2.68295133]
[1642502343625,0.00170527,3185.3,3184.5,4.04950585]
[1642502343825,0.00170527,3185.3,3184.6,3.21958994]
[1642502344030,0.00113684,3185.2,3184.6,3.21958994]
[1642502344229,1.52840001,3184.9,3184.7,0.00170527]
[1642502344729,1.52840001,3184.9,3184.7,2.6846566]
[1642502344930,1.52840001,3184.9,3184.7,2.68818069]
[1642502345168,1.52840001,3184.9,3184.8,2.68408818]
[1642502345569,0.00113684,3185.2,3184.8,2.68408818]
[1642502345772,0.00113684,3185.2,3184.9,0.1255]
[1642502345967,0.00113684,3185.2,3185.0,0.01006226]
[1642502346172,0.00113684,3185.2,3185.0,2.68295133]
[1642502346369,0.00113684,3185.2,3184.9,2.80845133]
[1642502346570,0.00113684,3185.2,3185.1,2.68295133]
[1642502346769,0.00113684,3185.2,3185.0,2.68295133]
[1642502346770,1.37141302,3185.2,3185.0,2.68295133]
[1642502346967,1.37027618,3185.2,3185.1,2.68295133]
[1642502347368,4.47027618,3185.2,3185.1,2.68295133]
[1642502349226,4.47027618,3185.2,3185.0,2.68295133]
[1642502349425,4.47027618,3185.2,3184.9,0.78495]
[1642502349426,4.47027618,3185.2,3185.1,2.68295133]
[1642502349625,3.1,3185.2,3185.1,2.68295133]
[1642502349826,3.10366246,3185.2,3185.0,2.68295133]
[1642502350027,3.10366246,3185.2,3185.1,5.88295133]
[1642502350426,3.10366246,3185.2,3185.1,7.05349958]
[1642502350627,3.10366246,3185.2,3185.1,8.05349958]
[1642502351432,0.1255,3186.8,3185.4,0.78473]
[1642502351627,0.1255,3186.8,3185.5,3.79622538]
[1642502351828,0.00625266,3186.3,3185.5,3.79622538]
[1642502352026,0.00625266,3186.3,3185.6,3.80845133]
[1642502352226,1.25445956,3186.0,3185.7,3.03756023]
[1642502352427,0.00568424,3186.2,3185.7,3.03756023]
[1642502352672,0.00397897,3185.9,3185.8,1.53655911]
[1642502352871,0.00511582,3186.1,3185.8,7.14472665]
[1642502353074,0.00397897,3185.9,3185.8,3.46177532]
[1642502353278,0.00454739,3186.0,3185.8,3.46177532]
[1642502353473,1.1104068,3186.2,3186.1,0.78457]
[1642502353876,1.1104068,3186.2,3186.0,1.56914]
[1642502354276,0.00511582,3186.1,3186.0,1.56914]
[1642502355576,0.00511582,3186.1,3186.0,4.31319625]
[1642502356822,0.00511582,3186.1,3186.0,4.45139622]
[1642502357218,0.00511582,3186.1,3186.0,11.87630205]
[1642502357419,0.00511582,3186.1,3186.0,7.22630205]
[1642502357819,0.00511582,3186.1,3186.0,8.01069855]
[1642502358118,1.34553401,3187.2,3186.5,0.78439]
[1642502358322,1.34553401,3187.2,3186.6,2.79387568]
[1642502358520,0.00511581,3187.0,3186.6,2.79387568]
[1642502358923,0.00454738,3186.9,3186.6,2.79387568]
[1642502359221,1.34553401,3187.2,3186.5,0.78439]
[1642502359222,0.00397896,3186.8,3186.5,0.78439]
[1642502359622,0.00341054,3186.7,3186.6,0.53642344]
[1642502360068,0.00341054,3186.7,3186.6,3.15626172]
[1642502364037,0.01150381,3186.9,3186.8,0.00682108]
[1642502364437,0.01264065,3186.9,3186.8,0.00682108]
[1642502364835,0.00113684,3186.9,3186.8,0.00682108]
[1642502365636,0.00113684,3186.9,3186.8,0.54324452]
[1642502367581,0.00113684,3186.9,3186.8,3.20570309]
[1642502367781,0.00113684,3186.9,3186.8,0.54324452]
[1642502368581,0.00113684,3186.9,3186.8,3.2299219]
[1642502369184,0.00113684,3186.9,3186.8,0.54324452]
[1642502369989,0.01264065,3186.9,3186.8,0.54324452]
[1642502374823,0.00688875,3186.9,3186.8,0.54659876]
[1642502376973,0.00688875,3186.9,3186.8,6.22085441]
[1642502377372,0.00688875,3186.9,3186.8,6.67185441]
[1642502377572,0.1255,3187.6,3186.9,3.03434]
[1642502377774,0.10896322,3187.6,3187.0,2.74108754]
[1642502377972,0.00341054,3187.5,3187.0,2.74108754]
[1642502378172,0.00341054,3187.5,3186.9,0.78434]
[1642502378472,0.00284212,3187.4,3186.9,0.78434]
[1642502378922,0.0022737,3187.3,3186.9,0.78434]
[1642502379325,0.00170527,3187.2,3186.9,0.78434]
[1642502379523,0.97149533,3187.4,3187.0,0.53642344]
[1642502379723,0.97149533,3187.4,3187.0,0.53756028]
[1642502381024,0.97149533,3187.4,3187.1,1.32086344]
[1642502382224,0.97149533,3187.4,3187.2,0.53642344]
[1642502383976,1.22453049,3187.3,3187.2,2.10522344]
[1642502384381,0.00170527,3187.5,3187.2,2.10522344]
[1642502384778,0.00113685,3187.4,3187.2,2.10522344]
[1642502385177,0.1254,3187.7,3187.3,1.32080344]
[1642502385178,0.0022737,3187.6,3187.3,1.32080344]
[1642502385379,1.13127797,3187.4,3187.3,0.53642344]
[1642502385779,1.13241482,3187.4,3187.3,0.53642344]
[1642502387638,0.00113685,3187.4,3187.3,0.53642344]
[1642502387837,0.00113685,3187.4,3187.3,3.52532298]
[1642502388038,0.00113685,3187.4,3187.3,3.65262747]
[1642502388237,0.00113685,3187.4,3187.3,3.35262747]
[1642502388838,0.00113685,3187.4,3187.3,4.35262747]
[1642502391073,0.53942457,3187.7,3187.3,3.35262747]
[1642502391272,0.53942457,3187.7,3187.3,1.32077344]
[1642502391473,0.00113685,3187.6,3187.3,1.32077344]
[1642502392175,0.00113685,3187.6,3187.4,0.53642344]
[1642502393827,0.48490903,3187.7,3187.6,0.00113685]
[1642502394024,0.1254,3188.0,3187.6,0.78542685]
[1642502394425,0.00170527,3187.9,3187.7,0.00625866]
[1642502394827,0.1254,3188.2,3187.7,0.00625866]
[1642502394828,0.00113684,3187.8,3187.7,0.53642344]
[1642502395224,1.36370302,3187.8,3187.7,0.53642344]
[1642502396225,0.91679955,3187.8,3187.7,0.53642344]
[1642502396427,0.1254,3188.2,3187.7,0.53642344]
[1642502396825,0.00170528,3188.1,3187.7,0.53642344]
[1642502397227,0.00113685,3188.0,3187.7,0.53642344]
[1642502397874,1.30112117,3187.8,3187.7,0.53642344]
[1642502398074,0.48510215,3187.8,3187.7,0.53642344]
[1642502398475,0.1254,3188.2,3188.0,0.00113185]
[1642502398879,0.1254,3188.2,3188.1,0.53642344]
[1642502399280,0.00113685,3188.2,3188.1,0.53642344]
[1642502399882,1.41232352,3188.2,3188.1,0.53992875]
[1642502400882,0.00113685,3188.2,3188.1,0.53992875]
[1642502402328,0.00113685,3188.2,3188.1,3.23881376]
[1642502403229,1.49951451,3188.8,3188.1,3.23881376]
[1642502403431,11.2723,3189.2,3188.3,0.78404]
[1642502403631,11.2723,3189.2,3188.4,2.56217151]
[1642502403632,0.00227369,3188.6,3188.4,2.56217151]
[1642502403830,0.00227369,3188.6,3188.2,4.22462074]
[1642502404033,0.00170527,3188.5,3188.2,4.22462074]
[1642502404232,0.00170527,3188.5,3188.3,0.53642344]
[1642502404432,7.606,3189.2,3188.5,0.7839595]
[1642502404633,7.606,3189.2,3188.6,0.784]
[1642502404832,1.36026054,3188.9,3188.6,0.784]
[1642502405276,0.00341054,3188.8,3188.6,0.784]
[1642502405480,0.00341054,3188.8,3188.7,0.53642344]
[1642502405678,1.36026054,3188.9,3188.7,0.53642344]
[1642502406676,1.35074414,3188.9,3188.7,0.53642344]
[1642502410331,3.849,3189.2,3188.7,0.53642344]
[1642502410526,3.849,3189.2,3188.8,4.27668058]
[1642502410732,0.00511581,3189.1,3188.8,4.27668058]
[1642502411127,0.00454739,3189.0,3188.8,1.56788]
[1642502411530,0.00397896,3188.9,3188.8,4.20594368]
[1642502412128,0.00397896,3188.9,3188.8,5.33667074]
[1642502412573,0.00397896,3188.9,3188.8,3.76879074]
[1642502413574,0.00397896,3188.9,3188.8,6.66879074]
[1642502413774,0.00397896,3188.9,3188.8,6.96879074]
[1642502413977,0.00397896,3188.9,3188.8,8.54359074]
[1642502414177,9.0745,3189.7,3188.9,2.95]
[1642502414377,9.0745,3189.7,3189.0,1.69301]
[1642502414579,0.00397897,3189.6,3189.0,2.69301]
[1642502414778,0.00397897,3189.6,3189.1,0.78381]
[1642502414977,5.0864,3189.7,3189.1,0.78381]
[1642502414978,0.00341054,3189.5,3189.1,0.78381]
[1642502415378,0.00284212,3189.4,3189.1,0.78381]
[1642502415578,5.0864,3189.7,3189.1,0.78381]
[1642502415780,5.0864,3189.7,3189.2,0.00113685]
[1642502415982,0.00113685,3189.6,3189.2,0.00113685]
[1642502416428,0.00113685,3189.6,3189.2,2.56633659]
[1642502416630,0.00113685,3189.6,3189.2,0.00113685]
[1642502417529,0.00113685,3189.6,3189.3,2.35144]
[1642502417728,0.00113685,3189.6,3189.3,3.66552761]